bitfinex-derivatives/quotes_ETHF0:USTF0_20250421
["timestamp","ask_amount","ask_price","bid_price","bid_amount"]
[1745249601875,4.8617,1630.9,1630.8,1.22612]
[1745249602066,4.96015135,1630.9,1630.6,3.2078]
[1745249602272,1.22612,1630.8,1630.7,2.95158]
[1745249602567,1.22619,1630.7,1630.6,4.434]
[1745249602763,1.6539,1630.8,1630.7,1.22619]
[1745249602963,4.44308807,1630.9,1630.8,1.22612]
[1745249603271,1.22612,1630.8,1630.7,7.37214]
[1745249603568,1.22612,1630.8,1630.7,7.04038305]
[1745249604068,4.94928807,1630.9,1630.8,1.22612]
[1745249604069,6.17538807,1630.9,1630.8,1.22612]
[1745249604272,3.21698807,1630.9,1630.8,1.22612]
[1745249604465,0.00918807,1630.9,1630.8,2.76692]
[1745249604664,14.22469178,1631.4,1631.0,3.06476]
[1745249604970,0.09843231,1631.3,1631.2,1.22582]
[1745249605165,1.32417231,1631.3,1631.2,1.22582]
[1745249605370,1.32416584,1631.3,1631.2,1.22582]
[1745249605572,1.22582,1631.2,1631.1,2.71163]
[1745249605762,1.32425235,1631.2,1631.1,2.71163]
[1745249605959,2.96728807,1631.3,1631.2,1.22582]
[1745249606173,3.06571844,1631.3,1631.2,1.22582]
[1745249606373,1.83991844,1631.3,1631.1,1.4858]
[1745249606572,0.00918807,1631.3,1631.2,1.22582]
[1745249606869,1.23492807,1631.3,1631.2,1.22582]
[1745249607083,1.33335159,1631.3,1631.2,1.22582]
[1745249608071,1.33335159,1631.3,1631.2,7.37182]
[1745249608375,4.54115159,1631.3,1631.2,7.37182]
[1745249608567,14.11315159,1631.3,1631.2,6.146]
[1745249609066,14.11315159,1631.3,1631.2,3.71718]
[1745249609272,1.22604,1630.9,1630.8,2.7669]
[1745249609972,1.22619,1630.7,1630.6,1.23538807]
[1745249610475,1.7724,1630.8,1630.7,1.22619]
[1745249610773,3.09697964,1630.8,1630.7,1.22619]
[1745249611174,1.22619,1630.7,1630.6,1.23538807]
[1745249611375,1.87085964,1630.7,1630.6,1.23538807]
[1745249611575,1.22618,1630.8,1630.7,1.22619]
[1745249611774,1.32463434,1630.8,1630.7,1.22619]
[1745249612074,3.01703434,1630.8,1630.7,7.37219]
[1745249612379,0.09845434,1630.8,1630.7,7.37219]
[1745249612676,1.22606,1630.9,1630.8,1.22612]
[1745249612878,1.324517,1630.9,1630.8,1.22612]
[1745249613179,0.098457,1630.9,1630.8,1.22612]
[1745249613377,1.324497,1630.9,1630.8,1.22612]
[1745249613580,1.22612,1630.8,1630.7,7.37214]
[1745249613875,1.32457736,1630.8,1630.7,7.37214]
[1745249614172,1.22612,1630.8,1630.7,7.37214]
[1745249614673,2.9185,1630.9,1630.7,7.37214]
[1745249614980,2.9185,1630.9,1630.8,1.6966]
[1745249615283,3.01695634,1630.9,1630.8,1.6966]
[1745249616177,3.01695634,1630.9,1630.8,2.92272]
[1745249616479,1.32455634,1630.9,1630.8,2.92272]
[1745249616683,1.32455634,1630.9,1630.8,1.6966]
[1745249617175,0.09845634,1630.9,1630.8,2.92272]
[1745249617375,4.4337,1631.1,1630.8,3.1495]
[1745249617573,5.79786,1631.2,1631.1,1.22589]
[1745249617879,5.89625443,1631.2,1631.1,1.22589]
[1745249618081,5.89625231,1631.2,1631.1,1.22589]
[1745249618480,0.00918807,1631.3,1631.2,1.22582]
[1745249618683,0.00918807,1631.3,1631.2,4.60752]
[1745249619381,0.00918807,1631.3,1631.2,10.75352]
[1745249620384,0.00918807,1631.3,1631.2,4.60752]
[1745249623580,1.23492807,1631.3,1631.2,3.3817]
[1745249623780,1.22582,1631.2,1631.1,1.22584]
[1745249624290,4.58638807,1631.3,1631.2,1.22582]
[1745249624484,3.45901597,1631.3,1631.2,1.22582]
[1745249624681,4.68475597,1631.3,1631.2,1.22582]
[1745249624987,3.36058807,1631.3,1631.2,1.22582]
[1745249625187,4.58632807,1631.3,1631.2,1.22582]
[1745249625390,4.68475143,1631.3,1631.2,1.22582]
[1745249625783,3.36058807,1631.3,1631.2,1.22582]
[1745249626489,4.58632807,1631.3,1631.2,1.22582]
[1745249626689,4.68475216,1631.3,1631.2,1.22582]
[1745249626891,0.00918807,1631.3,1631.2,1.22582]
[1745249627190,0.00918807,1631.3,1631.2,7.37182]
[1745249627390,0.00918807,1631.3,1631.2,10.57962]
[1745249627592,0.00918807,1631.3,1631.2,7.37182]
[1745249629187,0.00918807,1631.3,1631.2,10.57962]
[1745249630387,4.571,1631.8,1631.2,18.9248]
[1745249630587,1.6327,1631.8,1631.7,1.22544]
[1745249630892,2.95654421,1631.8,1631.7,1.22544]
[1745249631485,1.32384421,1631.8,1631.7,1.22544]
[1745249631686,2.95654421,1631.8,1631.7,1.22544]
[1745249632183,2.85815,1631.8,1631.7,1.22544]
[1745249632384,1.22544,1631.7,1631.6,1.76638807]
[1745249632584,2.85814,1631.7,1631.6,2.99183807]
[1745249633087,2.85814,1631.7,1631.6,0.00918807]
[1745249633287,2.95653763,1631.7,1631.6,0.00918807]
[1745249633481,7.95653763,1631.7,1631.6,0.00918807]
[1745249633689,12.52753763,1631.7,1631.6,1e-08]
[1745249633883,12.5275599,1631.7,1631.6,1e-08]
[1745249634191,18.6735599,1631.7,1631.6,1e-08]
[1745249634784,23.96478967,1631.7,1630.9,1.226]
[1745249634985,1.226,1631.0,1630.9,2.9998]
[1745249635192,1.226,1631.0,1630.9,9.1458]
[1745249635693,2.99295,1631.1,1631.0,1.22597]
[1745249635896,0.09844202,1631.1,1631.0,1.22597]
[1745249636089,1.5202,1631.2,1631.1,1.22589]
[1745249636295,1.61862961,1631.2,1631.1,1.22589]
[1745249636601,2.84444961,1631.2,1631.1,2.87439]
[1745249636999,2.74602,1631.2,1631.1,2.87439]
[1745249637197,1.61863286,1631.2,1631.1,2.87439]
[1745249637391,3.32593286,1631.2,1631.1,2.87439]
[1745249637597,3.32593286,1631.2,1631.0,1.22594]
[1745249637796,1.80573286,1631.1,1630.9,1.6485]
[1745249637997,1.7073,1631.1,1631.0,1.22597]
[1745249638199,2.9332,1631.1,1631.0,1.22597]
[1745249638692,1.22597,1631.0,1630.9,2.87447]
[1745249638895,1.7073,1631.0,1630.9,2.87447]
[1745249639195,1.7073,1631.0,1630.9,9.02047]
[1745249639692,1.5202,1631.2,1631.1,1.22589]
[1745249639893,4.56015539,1631.2,1631.1,1.22589]
[1745249640394,1.22589,1631.1,1631.0,6.146]
[1745249640597,3.04002539,1631.1,1631.0,6.146]
[1745249640785,3.04002539,1631.1,1631.0,7.37197]
[1745249641194,3.04002539,1631.1,1631.0,1.22597]
[1745249641393,3.04003268,1631.1,1631.0,1.22597]
[1745249642195,1.22597,1631.0,1630.9,2.92088]
[1745249642395,1.22604,1630.9,1630.8,5.96404807]
[1745249642693,1.22604,1630.9,1630.8,1.23530807]
[1745249643102,1.22604,1630.9,1630.8,0.00918807]
[1745249643396,1.22604,1630.9,1630.8,1.23530807]
[1745249643594,4.53229356,1630.9,1630.8,0.00918807]
[1745249643795,6.22469356,1630.9,1630.8,0.00918807]
[1745249644488,6.12624,1630.9,1630.8,0.00918807]
[1745249644692,6.22470028,1630.9,1630.8,0.00918807]
[1745249646190,6.22471507,1630.9,1630.8,0.00918807]
[1745249647696,6.12624,1630.9,1630.8,0.00918807]
[1745249648001,6.22471999,1630.9,1630.8,0.00918807]
[1745249648594,13.39346934,1630.9,1630.8,0.00918807]
[1745249649297,13.29498935,1630.9,1630.8,0.00918807]
[1745249649504,13.3934761,1630.9,1630.8,0.00918807]
[1745249649797,3.06591,1630.5,1630.2,1.699]
[1745249649989,1.22649,1630.3,1630.2,2.92551]
[1745249650194,1.22649,1630.3,1630.2,9.07151]
[1745249650395,3.01438315,1630.3,1630.2,9.07151]
[1745249650903,6.22218479,1630.3,1630.2,7.845]
[1745249651095,6.22218479,1630.3,1630.2,9.07157]
[1745249651302,6.22218479,1630.3,1630.2,2.92557]
[1745249651894,6.22218479,1630.3,1630.2,1.699]
[1745249652095,6.22218479,1630.3,1630.2,9.07157]
[1745249652294,6.22218479,1630.3,1630.2,7.845]
[1745249652503,6.22219206,1630.3,1630.2,6.146]
[1745249652703,7.75579206,1630.3,1630.2,6.146]
[1745249653591,7.75579206,1630.3,1630.2,7.8633]
[1745249654301,6.22219206,1630.3,1630.2,9.08987]
[1745249655504,6.22219206,1630.3,1630.2,7.8633]
[1745249655799,6.22218615,1630.3,1630.2,9.08987]
[1745249656400,6.22218615,1630.3,1630.2,7.53136323]
[1745249656906,6.22218615,1630.3,1630.2,8.75793323]
[1745249657400,6.22218552,1630.3,1630.2,8.75793323]
[1745249658802,6.22218552,1630.3,1630.2,5.81406323]
[1745249659006,6.22218845,1630.3,1630.2,5.81406323]
[1745249659609,6.22219502,1630.3,1630.2,5.81406323]
[1745249659910,6.22219502,1630.3,1630.2,7.43996323]
[1745249660106,6.22219502,1630.3,1630.2,8.66653323]
[1745249660307,6.22219502,1630.3,1630.2,7.43996323]
[1745249660510,6.22219502,1630.3,1630.2,5.81406323]
[1745249660699,6.22219502,1630.3,1630.2,7.46506323]
[1745249663108,6.22219502,1630.3,1630.2,1.651]
[1745249663909,6.2221943,1630.3,1630.2,1.651]
[1745249665309,6.22219107,1630.3,1630.2,1.651]
[1745249666899,13.06196479,1630.3,1629.2,3.2078]
[1745249667203,1.22702,1629.6,1629.5,1.658]
[1745249667404,4.53332479,1629.6,1629.5,1.658]
[1745249667911,6.20652479,1629.6,1629.5,1.658]
[1745249668204,6.1918,1629.7,1629.5,6.658]
[1745249668205,0.00918807,1629.7,1629.5,6.658]
[1745249668411,0.00918807,1629.7,1629.6,2.88502]
[1745249668803,0.00918807,1629.7,1629.6,7.88502]
[1745249669911,1.33465967,1629.7,1629.6,4.37122]
[1745249670106,0.10771967,1629.7,1629.6,4.37122]
[1745249670310,0.00918807,1629.7,1629.6,4.37122]
[1745249671307,1.23612807,1629.7,1629.6,3.1442]
[1745249671707,1.33466402,1629.7,1629.6,3.1442]
[1745249671912,1.3346654,1629.7,1629.6,3.1442]
[1745249672407,5.8986654,1629.7,1629.6,1.658]
[1745249672622,5.8986654,1629.7,1629.3,1.5505]
[1745249672623,1.22717,1629.4,1629.3,1.5505]
[1745249672815,1.22732,1629.2,1629.1,1.6285]
[1745249673006,4.53365733,1629.2,1629.1,1.6285]
[1745249674508,3.30633733,1629.2,1628.7,6.27701]
[1745249674716,6.2953756,1629.1,1628.8,2.85608]
[1745249674907,1.22754,1629.0,1628.9,1.6285]
[1745249675305,4.43534,1629.0,1628.9,1.6285]
[1745249675509,1.22747,1629.0,1628.9,1.6285]
[1745249675902,7.63261,1629.6,1629.0,3.06869]
[1745249676104,1.22731,1629.3,1629.1,6.09545]
[1745249676301,1.22731,1629.3,1629.2,2.94022]
[1745249676506,3.2078,1629.4,1629.2,2.94016]
[1745249676507,1.22722,1629.4,1629.2,2.94016]
[1745249676805,1.22722,1629.4,1629.3,1.7129]
[1745249677003,3.30636033,1629.4,1629.0,1.22741]
[1745249677207,3.2078,1629.2,1629.0,1.7129]
[1745249677413,4.43518,1629.2,1629.0,2.94033]
[1745249677809,5.79228,1629.3,1629.2,1.22732]
[1745249678012,5.79228,1629.3,1629.1,1.22734]
[1745249678206,0.09856033,1629.4,1629.3,1.22725]
[1745249678809,1.22725,1629.3,1629.2,4.40161]
[1745249679809,3.30636033,1629.4,1629.2,3.1743]
[1745249680108,1.32573033,1629.4,1629.3,1.22725]
[1745249680801,0.09856033,1629.4,1629.3,1.22725]
[1745249681506,1.32573033,1629.4,1629.3,1.22725]
[1745249682917,0.09856033,1629.4,1629.3,1.22725]
[1745249683116,1.32573033,1629.4,1629.3,1.22725]
[1745249683516,3.10553033,1629.4,1629.3,1.22725]
[1745249684011,3.10558033,1629.4,1629.3,1.22725]
[1745249684513,1.22725,1629.3,1629.2,4.40158]
[1745249684712,4.43505,1629.3,1629.2,4.40158]
[1745249685012,1.22725,1629.3,1629.2,3.1743]
[1745249685216,1.22725,1629.3,1629.2,4.40162]
[1745249687211,1.22725,1629.3,1629.2,3.1743]
[1745249687408,1.22725,1629.3,1629.0,3.06867]
[1745249687409,1.22732,1629.2,1628.9,3.06884]
[1745249687617,1.22732,1629.2,1628.9,6.08574]
[1745249687818,1.22732,1629.2,1629.1,1.2274]
[1745249688020,4.66356033,1629.4,1629.0,3.06869]
[1745249688316,5.89076033,1629.4,1629.3,1.22725]
[1745249688512,4.66356033,1629.4,1629.3,1.22725]
[1745249688910,4.66356033,1629.4,1629.3,2.71295]
[1745249690020,5.89073033,1629.4,1629.3,2.71295]
[1745249690219,5.89073033,1629.4,1629.3,1.4857]
[1745249690515,1.22725,1629.3,1629.2,2.75847]
[1745249690720,7.63987033,1629.4,1629.3,1.22725]
[1745249690916,1.22725,1629.3,1629.2,2.75845]
[1745249691117,2.89395,1629.3,1629.2,2.75845]
[1745249691315,6.10175,1629.3,1629.2,1.22725]
[1745249691621,2.89395,1629.3,1629.2,1.22725]
[1745249691823,5.89073033,1629.4,1629.3,1.22725]
[1745249692819,1.22729,1629.3,1629.2,1.22726]
[1745249693023,6.33026033,1629.4,1629.3,1.22725]
[1745249693024,4.66356033,1629.4,1629.3,1.22725]
[1745249693218,5.89073033,1629.4,1629.3,1.22725]
[1745249693415,4.66356033,1629.4,1629.3,1.22725]
[1745249693719,0.09856033,1629.4,1629.3,1.22725]
[1745249693912,0.09856033,1629.4,1629.3,4.50235]
[1745249695222,0.00918807,1629.7,1629.6,1.22702]
[1745249695418,0.00918807,1629.7,1629.6,2.77532]
[1745249695619,0.00918807,1629.7,1629.6,6.06422]
[1745249695920,0.00918807,1629.7,1629.6,9.27202]
[1745249696218,3.2078,1630.0,1629.9,1.22679]
[1745249696624,3.2078,1630.0,1629.7,7.82871]
[1745249696625,1.22658,1630.2,1629.8,4.902]
[1745249696827,1.22658,1630.2,1630.1,1.22657]
[1745249697725,1.22658,1630.2,1630.1,2.88527]
[1745249698033,10.93130487,1630.3,1630.2,1.22657]
[1745249698323,11.02904074,1630.3,1630.1,1.22658]
[1745249698525,1.7991,1630.2,1630.1,1.22658]
[1745249698726,3.12340911,1630.2,1630.1,1.6587]
[1745249698920,1.22664,1630.1,1630.0,1.23585807]
[1745249699225,3.3686,1630.1,1630.0,1.23585807]
[1745249699824,3.3686,1630.1,1630.0,2.89455807]
[1745249700125,4.59524,1630.1,1630.0,2.89455807]
[1745249700426,3.3686,1630.1,1630.0,2.89455807]
[1745249700723,4.59524,1630.1,1630.0,2.89455807]
[1745249700920,1.22687,1629.8,1629.6,3.2078]
[1745249701226,10.86042,1630.0,1629.4,11.05095]
[1745249701423,1.22696,1629.7,1629.6,1.22699]
[1745249701818,3.3345,1629.8,1629.7,1.22694]
[1745249702014,4.56137,1629.8,1629.6,2.90636]
[1745249702222,4.56142,1629.8,1629.7,1.22694]
[1745249702422,3.43227045,1629.8,1629.7,1.22694]
[1745249702823,4.65914045,1629.8,1629.7,1.22694]
[1745249703130,3.43227045,1629.8,1629.7,1.22694]
[1745249703425,3.3345,1629.8,1629.7,1.22694]
[1745249704126,3.3345,1629.8,1629.4,6.3038]
[1745249704427,2.87432,1629.7,1629.5,1.22703]
[1745249704625,1.585,1629.8,1629.5,1.7495]
[1745249704626,2.87432,1629.6,1629.5,1.7495]
[1745249704828,1.2271,1629.5,1629.4,4.32314]
[1745249705122,2.87445,1629.5,1629.4,1.22717]
[1745249705326,2.87445,1629.5,1629.2,3.06826]
[1745249705327,1.22727,1629.3,1629.2,1.22729]
[1745249705524,2.87453,1629.4,1629.3,1.22725]
[1745249705719,1.65648807,1629.4,1629.3,1.22725]
[1745249706024,2.88365807,1629.4,1629.3,1.22725]
[1745249706625,1.22725,1629.3,1629.2,2.97677]
[1745249706927,1.64,1629.3,1629.2,2.97677]
[1745249707526,2.86725,1629.3,1629.2,2.97677]
[1745249707828,1.64,1629.3,1629.2,2.97677]
[1745249708719,2.86725,1629.3,1629.2,2.97677]
[1745249709528,0.00918807,1629.4,1629.3,1.22725]
[1745249709826,1.23639807,1629.4,1629.3,3.02645]
[1745249710021,2.87829807,1629.4,1629.3,3.02645]
[1745249711927,2.97608942,1629.4,1629.3,3.02645]
[1745249712127,2.87829807,1629.4,1629.3,3.02645]
[1745249712328,2.97609086,1629.4,1629.3,3.02645]
[1745249712731,2.87829807,1629.4,1629.3,3.02645]
[1745249712929,2.87829807,1629.4,1629.3,1.7992]
[1745249713231,1.22725,1629.3,1629.2,1.22727]
[1745249713533,2.86495,1629.3,1629.2,1.22727]
[1745249713730,1.6377,1629.3,1629.2,1.22727]
[1745249713924,1.6377,1629.3,1629.2,3.01537]
[1745249714126,2.86497,1629.3,1629.2,1.22732]
[1745249714319,1.6377,1629.3,1629.2,1.22732]
[1745249714534,1.23635807,1629.4,1629.3,1.22725]
[1745249714730,2.97184804,1629.4,1629.3,1.22725]
[1745249715229,1.22725,1629.3,1629.2,3.01535]
[1745249715534,2.87411807,1629.4,1629.3,1.22725]
[1745249715733,1.74467759,1629.4,1629.3,1.22725]
[1745249715931,1.74467759,1629.4,1629.3,4.43505]
[1745249715932,0.10697759,1629.4,1629.3,4.43505]
[1745249716230,3.3304768,1630.3,1629.9,1.22679]
[1745249716428,1.6876,1630.2,1629.9,1.22679]
[1745249716635,1.6876,1630.2,1629.9,4.43459]
[1745249716834,2.9142,1630.2,1629.9,4.43459]
[1745249717134,14.34736858,1630.3,1630.2,1.22657]
[1745249718131,14.22469178,1630.3,1630.2,1.22657]
[1745249718727,1.22657,1630.2,1630.1,3.00049]
[1745249719133,14.22469178,1630.3,1630.2,1.22657]
[1745249719340,15.45118178,1630.3,1630.2,2.94167]
[1745249719931,1.22649,1630.3,1630.2,2.94167]
[1745249720830,1.22649,1630.3,1630.2,1.7151]
[1745249721136,1.22649,1630.3,1630.2,2.94167]
[1745249721736,4.43429,1630.3,1630.2,2.94167]
[1745249721939,8.30477607,1630.3,1630.0,1.22668]
[1745249722138,1.22672,1630.0,1629.9,6.15316]
[1745249722433,1.22672,1630.0,1629.9,4.9264]
[1745249722628,1.22672,1630.0,1629.9,6.15319]
[1745249722824,1.22672,1630.0,1629.9,3.2078]
[1745249723026,1.22679,1629.9,1629.8,0.00918807]
[1745249723226,2.90889,1629.9,1629.8,1.23605807]
[1745249723433,3.00589742,1629.9,1629.8,0.00918807]
[1745249724436,2.90889,1629.9,1629.8,0.00918807]
[1745249724632,3.00589631,1629.9,1629.8,0.00918807]
[1745249725335,1.22702,1629.6,1629.5,4.762]
[1745249725529,4.8485,1629.8,1629.5,6.16484]
[1745249725730,1.73772146,1629.7,1629.6,1.22702]
[1745249726025,1.6407,1629.7,1629.6,1.22702]
[1745249726738,2.86764,1629.7,1629.5,6.16483]
[1745249727040,1.22702,1629.6,1629.5,6.16483]
[1745249727233,2.86772,1629.6,1629.5,6.16483]
[1745249727736,1.2271,1629.5,1629.4,1.22711]
[1745249728032,1.22717,1629.4,1629.3,2.94375]
[1745249728733,1.22717,1629.4,1629.3,1.7165]
[1745249728935,1.22725,1629.3,1629.1,2.81182]
[1745249729130,1.22732,1629.2,1629.1,1.7165]
[1745249729326,3.2078,1629.3,1629.2,1.22732]
[1745249729534,4.46381807,1629.5,1629.1,4.78499]
[1745249729733,2.91111807,1629.5,1629.4,1.22717]
[1745249730033,3.00815466,1629.5,1629.4,1.22717]
[1745249730333,1.22717,1629.4,1629.3,2.94371]
[1745249730838,2.91114807,1629.5,1629.3,2.94371]
[1745249731031,0.00918807,1629.5,1629.4,2.87897]
[1745249732932,0.00918807,1629.5,1629.4,11.08677]
[1745249733132,0.00918807,1629.5,1629.4,17.23277]
[1745249733438,0.00918807,1629.5,1629.4,12.23277]
[1745249733634,0.00918807,1629.5,1629.4,7.7978]
[1745249733635,1.23628807,1629.5,1629.4,7.7978]
[1745249734036,1.23628807,1629.5,1629.4,9.02497]
[1745249734342,1.23628807,1629.5,1629.4,2.87897]
[1745249734928,3.03318807,1629.5,1629.4,2.87897]
[1745249735133,3.03318807,1629.5,1629.4,1.6518]
[1745249735438,1.22717,1629.4,1629.3,2.82541]
[1745249735638,3.02407,1629.4,1629.3,4.52795]
[1745249736040,1.22725,1629.3,1629.2,4.43507]
[1745249736239,1.22732,1629.2,1629.1,8.81386]
[1745249736539,1.2274,1629.1,1629.0,1.22741]
[1745249736739,2.9,1629.1,1629.0,2.86531]
[1745249737442,1.6726,1629.1,1629.0,2.86531]
[1745249738136,2.9,1629.1,1629.0,2.86531]
[1745249738344,2.9,1629.1,1628.7,1.22764]
[1745249738345,3.06871,1629.0,1628.7,1.22764]
[1745249738639,1.22762,1628.8,1628.7,2.86554]
[1745249738843,1.22762,1628.8,1628.7,1.22764]
[1745249739934,2.9002,1628.9,1628.6,1.6379]
[1745249740144,2.9002,1628.9,1628.7,1.22768]
[1745249740746,1.6726,1628.9,1628.8,1.22762]
[1745249740937,2.99722353,1628.9,1628.7,1.22763]
[1745249741243,1.22762,1628.8,1628.7,3.00063]
[1745249741445,2.90021,1628.9,1628.7,3.00063]
[1745249741845,1.22762,1628.8,1628.7,3.00063]
[1745249742246,1.22762,1628.8,1628.7,1.773]
[1745249742739,1.22776,1628.7,1628.5,4.44809]
[1745249742942,4.43557,1628.6,1628.5,3.2811]
[1745249743141,3.2078,1628.6,1628.5,4.50895]
[1745249743539,4.43557,1628.6,1628.5,4.50895]
[1745249743740,4.43557,1628.6,1628.5,3.2811]
[1745249743942,4.43557,1628.6,1628.5,4.50895]
[1745249744142,3.2078,1628.6,1628.5,4.50895]
[1745249744547,4.8351,1628.8,1628.7,1.2277]
[1745249744748,1.72438718,1628.8,1628.7,1.2277]
[1745249745043,2.85492,1628.8,1628.7,1.2277]
[1745249745544,1.2277,1628.7,1628.6,2.88221]
[1745249745840,1.2277,1628.7,1628.6,1.6545]
[1745249746038,3.0291,1628.7,1628.6,1.6545]
[1745249746435,3.0291,1628.7,1628.6,2.88227]
[1745249746631,3.0291,1628.7,1628.6,1.6545]
[1745249747041,3.0291,1628.7,1628.6,2.88227]
[1745249747437,1.6273,1628.8,1628.6,2.88227]
[1745249747642,4.65638,1628.8,1628.7,1.6471]
[1745249747939,1.6273,1628.8,1628.7,2.8748]
[1745249748338,3.02901,1628.9,1628.7,2.8748]
[1745249748543,3.02901,1628.9,1628.8,1.6471]
[1745249748735,3.12608384,1628.9,1628.8,1.6471]
[1745249749440,1.89847384,1628.9,1628.6,1.22771]
[1745249749638,2.93405,1628.8,1628.6,1.799]
[1745249749843,2.93405,1628.8,1628.6,3.02673]
[1745249750142,2.93405,1628.8,1628.7,1.2277]
[1745249750337,2.93405,1628.8,1628.7,1.799]
[1745249750542,2.93405,1628.8,1628.5,3.1835]
[1745249750543,1.22777,1628.6,1628.5,2.85443]
[1745249750743,1.22777,1628.6,1628.5,4.65343]
[1745249751343,2.93417,1628.6,1628.5,4.65343]
[1745249751643,1.4931,1628.7,1628.6,1.22777]
[1745249751943,2.934,1628.9,1628.8,1.22762]
[1745249752135,3.03108396,1628.9,1628.7,2.96754]
[1745249752340,2.93401,1628.9,1628.8,2.96752]
[1745249752642,3.03108278,1628.9,1628.8,1.7399]
[1745249752845,7.7618,1629.0,1628.8,1.7399]
[1745249752846,3.2078,1629.0,1628.8,1.7399]
[1745249753046,3.2078,1629.0,1628.9,2.74535]
[1745249753643,3.2078,1629.0,1628.9,4.48525]
[1745249754143,3.2078,1629.0,1628.9,10.63125]
[1745249755242,1.653,1629.3,1629.2,1.22732]
[1745249755547,0.09705018,1629.3,1629.2,1.22728]
[1745249755846,0.00918807,1629.5,1629.4,1.22717]
[1745249756347,0.00918807,1629.5,1629.3,4.45849]
[1745249756645,1.22717,1629.4,1629.3,1.22723]
[1745249756837,2.88017,1629.4,1629.3,1.22723]
[1745249757040,0.00918807,1629.5,1629.4,1.22717]
[1745249757440,1.23628807,1629.5,1629.4,1.22717]
[1745249757640,1.23628807,1629.5,1629.3,1.22719]
[1745249757641,1.22718,1629.4,1629.3,1.22719]
[1745249757841,1.22725,1629.3,1629.2,9.04807]
[1745249758041,2.95585,1629.3,1629.2,7.8208]
[1745249758346,3.05289653,1629.3,1629.2,2.90212]
[1745249758738,1.82564653,1629.3,1629.1,1.22734]
[1745249758940,1.2274,1629.1,1629.0,1.7836]
[1745249759142,3.16560071,1629.1,1628.7,4.43544]
[1745249759350,1.82566071,1629.0,1628.7,4.43544]
[1745249759547,1.22759,1628.9,1628.8,1.22762]
[1745249759748,1.32466205,1628.9,1628.8,1.22762]
[1745249759951,1.22759,1628.9,1628.8,1.22762]
[1745249760244,1.7286,1629.0,1628.7,1.7836]
[1745249760245,1.22762,1628.8,1628.7,1.7836]
[1745249760443,1.22785,1628.5,1628.4,1.22786]
[1745249760645,1.22783,1628.6,1628.4,3.01146]
[1745249760837,0.00918807,1628.6,1628.5,1.22785]
[1745249761850,0.00918807,1628.6,1628.5,2.86555]
[1745249762150,0.00918807,1628.6,1628.5,9.01155]
[1745249763150,1.23695807,1628.6,1628.5,1.6377]
[1745249763942,1.22792,1628.4,1628.3,2.86564]
[1745249764241,1.22792,1628.4,1628.3,1.6377]
[1745249764643,1.7257,1628.5,1628.0,8.29331001]
[1745249764644,1.22803,1628.3,1628.0,8.29331001]
[1745249764840,4.44477807,1628.6,1628.2,3.2078]
[1745249765046,0.00918807,1628.6,1628.4,3.2078]
[1745249765248,0.00918807,1628.6,1628.5,3.2496]
[1745249765551,1.23695807,1628.6,1628.5,3.2496]
[1745249765945,1.23695807,1628.6,1628.5,1.662]
[1745249766141,1.22792,1628.4,1628.3,1.5948]
[1745249766350,4.79547,1628.5,1628.2,3.2078]
[1745249766651,1.22805,1628.3,1628.1,9.3464]
[1745249767039,1.22808,1628.2,1628.1,9.3464]
[1745249767245,1.22808,1628.2,1628.1,4.7954]
[1745249767450,1.22808,1628.2,1628.1,6.4576]
[1745249767653,1.22804,1628.3,1628.1,6.4576]
[1745249767948,1.22804,1628.3,1628.2,1.6622]
[1745249769755,1.22808,1628.2,1628.1,1.5876]
[1745249769947,1.22823,1628.0,1627.9,3.2078]
[1745249770156,1.2283,1627.9,1627.8,3.1298]
[1745249770342,1.2283,1627.9,1627.8,1.4885]
[1745249772750,1.7373,1628.0,1627.8,1.4885]
[1745249772751,4.6447,1628.1,1627.8,1.4885]
[1745249772952,1.2283,1627.9,1627.8,4.6963]
[1745249774348,1.22838,1627.8,1627.7,6.146]
[1745249774550,3.00928,1627.8,1627.7,6.146]
[1745249774751,1.22838,1627.8,1627.7,6.146]
[1745249775144,1.22838,1627.8,1627.7,1.6326]
[1745249775346,1.22845,1627.7,1627.6,3.2078]
[1745249775546,1.19963,1627.6,1627.5,6.146]
[1745249775746,4.56953,1627.6,1627.5,6.146]
[1745249775952,9.66669829,1627.6,1627.5,2.64879014]
[1745249776151,1.22883,1627.2,1627.1,0.02536]
[1745249776750,4.53673,1627.2,1627.1,0.02536]
[1745249776958,4.63392591,1627.2,1627.1,0.02536]
[1745249777149,4.53673,1627.2,1627.1,0.02536]
[1745249777449,1.22906,1626.9,1626.8,1.643]
[1745249777657,1.22913,1626.8,1626.7,23.47769945]
[1745249778049,7.62532,1627.1,1626.7,23.47769945]
[1745249778248,9.34422,1627.1,1626.7,29.62369945]
[1745249778448,1.22909,1626.9,1626.8,1.5288]
[1745249778647,1.22909,1626.9,1626.8,4.7366]
[1745249780055,3.07169,1627.5,1627.1,1.22891]
[1745249780354,4.73839,1627.6,1627.2,3.2078]
[1745249780654,1.22875,1627.3,1627.2,6.3507]
[1745249781056,1.22875,1627.3,1627.2,11.3507]
[1745249781256,1.22875,1627.3,1627.2,18.72553]
[1745249781460,1.22875,1627.3,1627.2,9.2889]
[1745249781657,1.22875,1627.3,1627.2,6.146]
[1745249781851,4.43655,1627.3,1627.2,3.40121]
[1745249782053,20.07173646,1627.3,1627.2,1.43769]
[1745249782252,1.22906,1626.9,1626.8,3.2078]
[1745249782456,1.22936,1626.5,1626.4,12.3159]
[1745249782658,1.22936,1626.5,1626.4,6.4319]
[1745249783153,1.22936,1626.5,1626.4,9.3701]
[1745249783359,2.91716,1626.5,1626.4,9.3701]
[1745249783861,2.91716,1626.5,1626.4,11.1511]
[1745249784064,2.91716,1626.5,1626.4,6.146]
[1745249784358,7.91716,1626.5,1626.4,2.52382]
[1745249784550,8.01441256,1626.5,1626.4,0.7188]